[Event "Danish-ch Masters 2022"]
[Site "Svendborg"]
[Date "2022.04.10"]
[Round "2.1"]
[White "Ochsner, Bjorn Moller"]
[Black "Olsen, Filip Boe"]
[Result "1/2-1/2"]
[ECO "B90"]
[WhiteElo "2496"]
[BlackElo "2386"]
[Annotator "TA"]
[PlyCount "149"]
[EventDate "2022.04.10"]
[EventType "tourn"]
[EventCountry "DEN"]
[SourceTitle "playchess.com"]
[Source "ChessBase"]
[SourceQuality "1"]
[TimeControl "40/5400+30:1800+30"]

{[%evp 12,149,7,3,37,23,33,24,31,23,32,13,38,35,32,6,8,0,0,0,0,0,0,0,0,0,0,0,0,0,0,0,0,0,0,0,0,0,0,0,13,32,31,31,53,40,40,41,105,74,113,36,129,68,65,66,199,69,135,72,73,53,42,18,56,41,32,33,33,39,82,56,116,116,148,187,187,0,75,73,75,65,143,6,104,105,136,75,138,145,166,159,150,160,129,0,154,0,136,136,136,116,117,83,83,83,83,67,91,75,75,77,75,75,75,75,140,57,57,65,121,115,111,0,57,58,66,19,12,14,26,5,26,26,44,0,47,0,0,0]} 1. e4 {[%emt 0:02:54]} c5 {[%emt 0:01:04]} 2. Nf3 {[%emt 0:00:26][%cal Bg1f3,Bf3d4,Bd4e2,Be2c3,Bc3d5][%mdl 32]} d6 {[%emt 0:00:11]} 3. d4 {[%emt 0:00:22]} cxd4 {[%emt 0:00:10]} 4. Nxd4 {[%emt 0:00:04]} Nf6 {[%emt 0:00:12]} 5. Nc3 {[%emt 0:00:05]} a6 {[%emt 0:00:11]} 6. h3 {[%emt 0:00:11]} e5 {[%emt 0:00:19] 6...e5 scores better than 6...e6.} 7. Nde2 {[%emt 0:00:09]} h5 {[%emt 0:00:17] B90: Sicilian Najdorf: Unusual White 6th moves, 6 Be3 Ng4 and 6 Be3 e5.} 8. g3 {[%emt 0:00:29]} Be7 {[%emt 0:00:55]} 9. Bg2 {[%emt 0:00:48]} b5 {[%emt 0:00:21] White has an edge.} 10. Nd5 {[%emt 0:01:14]} Nbd7 {[%emt 0:00:36]} 11. Nec3 {[%emt 0:01:49]} Nxd5 {[%emt 0:01:13]} 12. Nxd5 {[%emt 0:00:27]} (12. exd5 h4 $15) 12... h4 {[%emt 0:00:59] [#]} 13. g4 $146 {[%emt 0:01:42]} ({Predecessor:} 13. a4 bxa4 14. Rxa4 Nb6 15. Ra3 Nxd5 16. Qxd5 Be6 17. Qa5 Qb8 18. Qa4+ Bd7 19. Qb3 {½-½ (44) Alekseenko,K (2715)-Shankland,S (2679) Budva 2019}) 13... Bb7 {[%emt 0:03:43]} 14. O-O {[%emt 0:06:03]} O-O {[%emt 0:00:53]} 15. c3 {[%emt 0:04:33]} Bxd5 {[%emt 0:07:06]} 16. Qxd5 {[%emt 0:00:31]} Nb6 {[%emt 0:00:18]} 17. Qd3 {[%emt 0:02:40]} Bg5 {[%emt 0:08:04]} 18. Bxg5 {[%emt 0:25:34]} Qxg5 {[%emt 0:00:12]} 19. Qxd6 {[%emt 0:00:17]} Nc4 {[%emt 0:01:06][%csl LRb2,LRd6]} 20. Qb4 {[%emt 0:00:34]} Rfd8 {[%emt 0:08:22] White must now prevent ...Rd2.} 21. a4 $1 {[%emt 0:04:09]} Rd2 {[%emt 0:19:34][%cal Oc4e3] ...Ne3! is the strong threat.} 22. Qc5 {[%emt 0:06:05] Against Ne3} Rad8 {[%emt 0:06:58]} 23. axb5 {[%emt 0:02:00]} axb5 {[%emt 0:00:12]} 24. b3 {[%emt 0:08:31]} (24. Qxb5 $2 Ne3 $1 25. Ra5 (25. fxe3 Qxe3+ 26. Kh1 Rxg2) 25... Nxf1 26. Qxe5 Qxe5 27. Rxe5 Ne3 $1 {[%mdl 512]} 28. fxe3 Rxb2 $19) 24... Nb2 {[%emt 0:02:03]} ({Much less strong is} 24... Nd6 25. f4 Qe7 26. Ra7 $16 (26. Qxe5 Qb7 $14) (26. fxe5 Qg5 $11)) 25. Qxb5 {[%emt 0:02:12]} Nd1 {[%emt 0:10:20][%cal Od1e3]} 26. Qc5 {[%emt 0:05:24] Prevents Ne3.} Qf4 {[%emt 0:06:08]} 27. b4 {[%emt 0:07:04] And now b5 would win.} R2d3 {[%emt 0:04:36]} 28. Ra5 {[%emt 0:01:51]} Nxc3 {[%emt 0:05:06]} 29. Qxe5 {[%emt 0:00:14]} Qd2 {[%emt 0:00:26]} (29... Ne2+ $14 30. Kh1 Qxe5 31. Rxe5 Rb3) 30. Kh1 {[%emt 0:02:34]} Ne2 {[%emt 0:02:03]} 31. Rd5 {[%emt 0:02:46]} (31. Qe7 $16) 31... Nf4 {[%emt 0:06:15]} ({Black should try} 31... Qxb4 $14 32. Rxd3 Rxd3) 32. Rxd3 {[%emt 0:01:38]} (32. Rxd8+ $1 $16 Rxd8 33. b5) 32... Nxd3 $14 {[%emt 0:00:53]} 33. Qe7 {[%emt 0:00:39][%csl LRd8,LRh4]} Nxb4 {[%emt 0:02:58]} (33... Rb8 $14) 34. Qxh4 {[%emt 0:00:25]} ({White has to play} 34. e5 $1 $18) 34... Rc8 {[%emt 0:00:17]} (34... g5 $14 35. Qh5 Qf4) 35. Qg3 {[%emt 0:01:54]} (35. e5 $142 $1) 35... Nd3 $16 {[%emt 0:00:27]} 36. Qf3 {[%emt 0:04:10]} Rc3 {[%emt 0:01:23]} 37. Qf5 {[%emt 0:01:07]} (37. e5 $5) 37... Nf4 {[%emt 0:01:20]} 38. Ra1 {[%emt 0:03:48] Intending Ra8+ and mate.} Rc1+ {[%emt 0:00:32]} 39. Rxc1 {[%emt 0:00:05]} Qxc1+ {[%emt 0:00:06]} 40. Kh2 {[%emt 0:00:10]} Qc7 {[%emt 0:01:58]} 41. Qb5 {[%emt 0:12:32]} Ne2+ {[%emt 0:05:46]} (41... g6 $14) 42. e5 {[%emt 0:00:43]} Nc3 {[%emt 0:00:24]} 43. Qe8+ {[%emt 0:01:09]} Kh7 {[%emt 0:00:01]} 44. Bf1 $2 {[%emt 0:03:43]} (44. Kh1 $18) 44... Nd5 {[%emt 0:01:56]} (44... Qa7 $1 $11 45. Bd3+ g6) 45. Kg1 {[%emt 0:07:34]} Nf4 {[%emt 0:01:55] Against e6} 46. Qb5 {[%emt 0:00:54]} Qc3 {[%emt 0:01:03]} ({Better is} 46... Kg8 $1 $14) 47. Kh2 {[%emt 0:01:21]} (47. Qb7 $16 Qe1 48. Qxf7 Qxe5 49. Qd7) 47... Qf3 {[%emt 0:03:15]} (47... Qe1 $1 $11 {remains equal.}) 48. Qb1+ {[%emt 0:02:38]} Kg8 {[%emt 0:02:51]} 49. Qc2 {[%emt 0:00:35]} (49. Qb6 $142) 49... Ne6 {[%emt 0:01:55]} (49... g5 $142) 50. Qd2 {[%emt 0:01:40]} Nf4 {[%emt 0:02:21] Inhibits Bg2.} 51. Qd8+ {[%emt 0:00:25]} Kh7 {[%emt 0:00:07]} 52. Qh4+ {[%emt 0:00:14]} Kg8 {[%emt 0:00:15]} 53. Qd8+ {[%emt 0:00:19]} Kh7 {[%emt 0:00:05]} 54. Qh4+ {[%emt 0:00:03]} Kg8 {[%emt 0:00:05]} 55. Qg3 $1 {[%emt 0:00:05]} Qe4 {[%emt 0:00:10]} 56. Qc3 {[%emt 0:00:27]} Ng6 {[%emt 0:02:56]} 57. Qc8+ {[%emt 0:01:38]} Kh7 {[%emt 0:00:22]} 58. e6 {[%emt 0:01:18]} fxe6 {[%emt 0:01:36]} 59. Qc3 {[%emt 0:00:50] Inhibits Qe1.} Nf4 {[%emt 0:02:27] Against Bd3} 60. Kg3 {[%emt 0:00:35] aiming for Qc4.} e5 {[%emt 0:01:19]} 61. Qe3 {[%emt 0:00:44]} Qd5 {[%emt 0:00:48]} 62. h4 {[%emt 0:00:32]} Qh1 {[%emt 0:03:20]} 63. Qxe5 {[%emt 0:01:40]} Qxh4+ {[%emt 0:00:21]} (63... Qxf1 $142 64. Qf5+ (64. Kxf4 Qxf2+ 65. Ke4 Qg2+ 66. Kf5 Qf2+ 67. Qf4 Qxh4 $11) (64. Qxf4 Qg1+ 65. Kf3 Qh1+ 66. Ke3 Qxh4 $16) 64... Kg8 65. Qxf4 Qg1+ 66. Kf3 Qh1+ 67. Kg3 Qg1+ 68. Kf3 Qh1+ 69. Kg3 Qg1+) 64. Kf3 {[%emt 0:00:36]} (64. Kxh4 $16 {Kg5 would kill now.} Ng6+ 65. Kg5 Nxe5 66. Kf5) 64... g5 $14 {[%emt 0:02:07]} 65. Qe7+ {[%emt 0:00:51]} Kg6 {[%emt 0:00:30] [#]} (65... Kh6 $14) 66. Qd6+ $1 $16 {[%emt 0:00:48]} Kg7 {[%emt 0:00:07] [#]} 67. Qe5+ {[%emt 0:00:06]} (67. Qd4+ $1 $16 Kh7 68. Bd3+ Nxd3 69. Qxd3+ Kh6 70. Qd6+ Kg7 71. Qe7+ Kh6 72. Qf6+ Kh7 73. Qf5+ Kg7 74. Ke3) 67... Kg6 {[%emt 0:00:32]} (67... Kh7 $11) 68. Qf5+ $14 {[%emt 0:00:08]} Kg7 {[%emt 0:00:05]} 69. Qd7+ {[%emt 0:00:19]} (69. Ke3 $14 {might be stronger.} Qh6 70. Qd7+ Kf8 71. Qc8+ Kg7 72. Qd7+ Kf8 73. Qc8+ Kg7 74. Qc7+ Kh8 75. Qe5+ Kh7 76. Qf5+ Kh8 77. Qe5+ Kh7 78. Qf5+ Kh8 79. Qe5+) 69... Kf6 {[%emt 0:00:19]} 70. Qd4+ {[%emt 0:00:21]} Ke7 $1 {[%emt 0:02:13]} 71. Qg7+ {[%emt 0:00:59]} Kd6 {[%emt 0:00:47]} 72. Qf8+ {[%emt 0:00:12]} Ke5 {[%emt 0:00:35]} 73. Qg7+ {[%emt 0:01:09]} Kd5 {[%emt 0:00:22]} (73... Kd6 $1 $11 {is superior.}) 74. Ke3 {[%emt 0:01:17]} (74. Qe7 $14) 74... Qxg4 $11 {[%emt 0:00:39]} 75. Qd4+ {[%emt 0:00:48] Weighted Error Value: White=0.26 (precise) /Black=0.23 (precise)} 1/2-1/2

[Event "Danish-ch Masters 2022"]
[Site "Svendborg"]
[Date "2022.04.10"]
[Round "2.2"]
[White "Percivaldi, Martin"]
[Black "Thybo, Jesper Sondergaard"]
[Result "1/2-1/2"]
[ECO "A30"]
[WhiteElo "2389"]
[BlackElo "2592"]
[Annotator "TA"]
[PlyCount "60"]
[EventDate "2022.04.10"]
[EventType "tourn"]
[EventCountry "DEN"]
[SourceTitle "playchess.com"]
[Source "ChessBase"]
[SourceQuality "1"]
[TimeControl "40/5400+30:1800+30"]

{[%evp 12,60,0,0,0,0,0,10,12,0,0,0,0,0,0,0,0,0,0,0,0,0,0,0,0,-16,0,0,0,0,0,0,0,0,0,0,0,0,0,0,0,0,9,7,13,8,8,8,8,12,37]} 1. c4 {[%emt 0:00:09]} c5 {[%emt 0:01:15]} 2. Nf3 {[%emt 0:01:06][%cal Bg1f3,Bf3d4,Bd4b3][%mdl 32]} Nc6 {[%emt 0:00:33]} 3. d4 {[%emt 0:00:20]} cxd4 {[%emt 0:00:17]} 4. Nxd4 {[%emt 0:00:07]} Qb6 {[%emt 0:00:13]} 5. Nb3 {[%emt 0:04:44]} e6 {[%emt 0:00:44]} 6. e4 {[%emt 0:05:19]} Nf6 {[%emt 0:04:27]} 7. Nc3 {[%emt 0:09:23] The position is equal.} Bb4 {[%emt 0:01:29] A31: Symmetrical English: 2 Nf3 Nf6 3 d4.} 8. Bd3 {[%emt 0:00:29]} Ne5 {[%emt 0:01:42]} 9. O-O {[%emt 0:05:11][%cal Oc4c5]} Qd6 {[%emt 0:01:46] [#] Prevents c5.} 10. Bf4 $1 {[%emt 0:07:31][%cal Oc3b5,Bc1f4,Bf4e5,Be5g7,Bg7d4][%mdl 32] And now Nb5! would win.} Bxc3 {[%emt 0:01:42]} 11. bxc3 {[%emt 0:00:09]} Qxd3 {[%emt 0:00:20]} 12. Bxe5 {[%emt 0:00:06]} Qxd1 {[%emt 0:00:24]} 13. Rfxd1 {[%emt 0:01:44]} Nxe4 {[%emt 0:00:40]} 14. Bxg7 {[%emt 0:02:15]} Rg8 {[%emt 0:00:09]} 15. Bd4 {[%emt 0:00:37]} b6 {[%emt 0:07:25]} 16. f3 {[%emt 0:03:59]} Nd6 {[%emt 0:03:17]} 17. c5 {[%emt 0:03:08]} Nf5 {[%emt 0:02:35]} 18. Kf2 {[%emt 0:01:39]} Bb7 {[%emt 0:12:28]} 19. cxb6 {[%emt 0:09:31] [#] Strongly threatening Na5.} Nxd4 {[%emt 0:04:57]} 20. Rxd4 {[%emt 0:01:00] Threatens to win with Na5.} axb6 {[%emt 0:00:07]} 21. Rb4 {[%emt 0:01:03] [#]} Ra6 $146 {[%emt 0:02:04]} ({Predecessor:} 21... Ke7 22. c4 Ba6 23. Nd2 Rgc8 24. a4 Rc6 25. a5 Bc8 26. Rb5 bxa5 27. Raxa5 Rxa5 28. Rxa5 {½-½ (45) Munoz Pantoja,M (2443)-Alsina Leal,D (2513) Barcelona 2021}) 22. a4 {[%emt 0:02:22]} Kd8 {[%emt 0:03:37]} 23. a5 {[%emt 0:13:18]} Kc7 {[%emt 0:01:13]} 24. axb6+ {[%emt 0:00:46]} Rxb6 {[%emt 0:01:29]} 25. Rxb6 {[%emt 0:01:59]} Kxb6 $11 {[%emt 0:00:04] KRB-KRN} 26. Ra4 {[%emt 0:00:36]} Rc8 {[%emt 0:07:45]} 27. Rb4+ {[%emt 0:01:39]} Ka7 {[%emt 0:00:41]} 28. c4 {[%emt 0:02:09]} d6 {[%emt 0:11:00]} 29. Ke3 {[%emt 0:01:24]} e5 {[%emt 0:01:12]} 30. g4 {[%emt 0:04:12]} d5 {[%emt 0:09:52] A balanced but interesting game.  Weighted Error Value: White=0.02 (flawless) /Black=0.02 (flawless)} 1/2-1/2

[Event "Danish-ch Masters 2022"]
[Site "Svendborg"]
[Date "2022.04.10"]
[Round "2.3"]
[White "Bjerre, Jonas Buhl"]
[Black "Sylvan, Jacob"]
[Result "1-0"]
[ECO "A50"]
[WhiteElo "2586"]
[BlackElo "2312"]
[Annotator "TA"]
[PlyCount "81"]
[EventDate "2022.04.10"]
[EventType "tourn"]
[EventCountry "DEN"]
[SourceTitle "playchess.com"]
[Source "ChessBase"]
[SourceQuality "1"]
[TimeControl "40/5400+30:1800+30"]

{[%evp 10,81,27,31,29,29,35,52,38,34,20,30,22,31,20,28,30,17,35,0,0,0,0,-15,18,0,74,62,60,18,17,19,29,19,46,26,34,14,42,8,12,0,0,0,0,0,39,29,52,12,97,127,122,113,338,310,324,314,631,616,828,831,802,775,706,726,29968,29970,29968,29967,5404,2211,29986,29987]} 1. d4 {[%emt 0:00:04]} Nf6 {[%emt 0:00:35]} 2. c4 {[%emt 0:00:10]} b6 {[%emt 0:00:54]} 3. Nc3 {[%emt 0:04:14]} Bb7 {[%emt 0:01:23]} 4. Qc2 {[%emt 0:00:31]} d5 {[%emt 0:00:40]} 5. cxd5 {[%emt 0:01:54]} Nxd5 {[%emt 0:00:25]} 6. e4 {[%emt 0:01:48]} Nxc3 {[%emt 0:00:12] A50: Queen's Fianchetto Defence (1 d4 Nf6 2 c4 b6).} 7. bxc3 {[%emt 0:00:04]} e5 {[%emt 0:00:08]} 8. Nf3 {[%emt 0:05:54]} exd4 {[%emt 0:00:52] White is slightly better.} 9. Bc4 {[%emt 0:01:59] [#] Black must now prevent Ng5.} Nc6 {[%emt 0:02:11]} 10. O-O {[%emt 0:05:29]} d3 {[%emt 0:03:03]} 11. Bxd3 {[%emt 0:02:29]} Qe7 {[%emt 0:01:41] Inhibits e5.} 12. Re1 {[%emt 0:08:56] Strongly threatening e5.} O-O-O {[%emt 0:21:33]} 13. e5 {[%emt 0:00:55] [#] And now Bg5 would win.} h6 {[%emt 0:00:18] Inhibits Bg5.} 14. a4 {[%emt 0:06:12]} Kb8 {[%emt 0:04:56] [#]} 15. a5 $146 {[%emt 0:08:24]} ({Predecessor:} 15. Ba3 Qe8 16. Bxf8 Qxf8 17. a5 Nxa5 18. Rxa5 bxa5 19. Rb1 c6 20. Ba6 Rd7 21. e6 {0-1 (40) Daneshvar,B (2327)-Gholami Orimi,M (2437) Teheran 2019}) 15... Nxa5 {[%emt 0:04:32][%cal Oa5b3]} 16. Nd4 {[%emt 0:18:10] Inhibits Nb3.} Nc6 {[%emt 0:13:18]} 17. Qa4 {[%emt 0:03:21]} Rxd4 {[%emt 0:03:48]} 18. cxd4 $16 {[%emt 0:00:21] Bd2 is the strong threat.} Qb4 {[%emt 0:00:06] Against Bd2} 19. Be3 {[%emt 0:07:05] Hoping for Qa2.} Qxa4 {[%emt 0:01:41]} 20. Rxa4 {[%emt 0:00:01]} Nb4 {[%emt 0:00:31]} 21. Bc4 {[%emt 0:01:20]} Nd5 {[%emt 0:00:28]} 22. Bd2 {[%emt 0:03:19]} Be7 {[%emt 0:03:02]} 23. Ra2 {[%emt 0:02:38]} Rd8 {[%emt 0:01:49][%cal Od5f4]} 24. Rc2 {[%emt 0:01:27]} a5 {[%emt 0:02:53]} 25. f4 {[%emt 0:01:52]} Nb4 {[%emt 0:03:49]} 26. Bxb4 {[%emt 0:03:26]} ({Don't play} 26. Rb2 Rxd4 27. Bb5 (27. Bxf7 $2 Nd3 $19) 27... Bc5 $17) 26... Bxb4 {[%emt 0:00:18]} 27. Rd1 $36 {[%emt 0:00:31][%mdl 2048] Black is under pressure.} Bd5 {[%emt 0:00:29]} 28. Bxd5 {[%emt 0:03:02]} Rxd5 $14 {[%emt 0:00:47][%mdl 4096] Endgame KRR-KRB} 29. Kf2 {[%emt 0:00:34] Black should prevent Ke3.} Be7 {[%emt 0:09:36]} (29... c5 $1 $11) 30. Ke3 {[%emt 0:00:46] &Bianco is more active.} a4 {[%emt 0:00:31]} 31. Ke4 {[%emt 0:01:55]} Rd7 {[%emt 0:00:50] This costs Black the game.} (31... Ra5 $16 {keeps fighting.}) 32. d5 $18 {[%emt 0:01:36]} a3 {[%emt 0:01:57]} 33. Rdc1 {[%emt 0:02:06]} b5 $2 {[%emt 0:06:28]} (33... Bb4 34. f5 Re7) 34. f5 {[%emt 0:02:57]} b4 {[%emt 0:00:42]} 35. e6 {[%emt 0:00:02]} fxe6 {[%emt 0:00:55]} 36. fxe6 {[%emt 0:00:11]} Rd8 {[%emt 0:00:23]} 37. Rxc7 {[%emt 0:00:21]} Bf6 {[%emt 0:01:43]} 38. e7 {[%emt 0:02:02]} Bxe7 {[%emt 0:01:48]} 39. Rxe7 {[%emt 0:00:03]} a2 {[%emt 0:00:05]} 40. Kd4 {[%emt 0:00:36] White threatens Re2 and mate.} b3 {[%emt 0:00:23]} 41. Re3 {[%emt 0:30:36] Weighted Error Value: White=0.09 (flawless) /Black=0.64} 1-0

[Event "Danish-ch Masters 2022"]
[Site "Svendborg"]
[Date "2022.04.10"]
[Round "2.4"]
[White "Haubro, Martin"]
[Black "Schandorff, Lars"]
[Result "1-0"]
[ECO "C95"]
[WhiteElo "2399"]
[BlackElo "2469"]
[Annotator "TA"]
[PlyCount "103"]
[EventDate "2022.04.10"]
[EventType "tourn"]
[EventCountry "DEN"]
[SourceTitle "playchess.com"]
[Source "ChessBase"]
[SourceQuality "1"]
[TimeControl "40/5400+30:1800+30"]

{[%evp 21,103,31,36,15,21,10,15,11,19,16,18,18,16,10,33,0,19,0,26,26,37,23,19,0,0,0,0,0,0,0,0,15,33,36,78,24,39,0,0,0,0,0,25,25,0,0,10,0,9,0,47,0,16,20,48,41,110,101,147,149,197,190,291,291,565,577,560,532,609,591,582,558,587,528,694,559,894,860,1043,1053,1460,1449,1179,1046]} 1. e4 {[%emt 0:00:13]} e5 {[%emt 0:01:16]} 2. Nf3 {[%emt 0:00:06]} Nc6 {[%emt 0:00:08]} 3. Bb5 {[%emt 0:00:04]} a6 {[%emt 0:00:23]} 4. Ba4 {[%emt 0:00:04]} Nf6 {[%emt 0:00:06]} 5. O-O {[%emt 0:00:06]} Be7 {[%emt 0:00:06]} 6. Re1 {[%emt 0:00:03]} b5 {[%emt 0:00:08]} 7. Bb3 {[%emt 0:00:04]} d6 {[%emt 0:00:06]} 8. c3 {[%emt 0:00:04]} O-O {[%emt 0:00:08]} 9. h3 {[%emt 0:00:05]} Nb8 {[%emt 0:00:51]} 10. d4 {[%emt 0:00:06]} Nbd7 {[%emt 0:00:08]} 11. Nbd2 {[%emt 0:00:07]} c5 {[%emt 0:00:27]} 12. d5 {[%emt 0:01:11] C95: Closed Ruy Lopez: Breyer Variation with 10 d4.} Nb6 {[%emt 0:05:26]} 13. Nf1 {[%emt 0:13:35] [#]} Re8 $146 {[%emt 0:01:40]} ({Predecessor:} 13... Ne8 14. Ng3 g6 15. Nh2 Bg5 16. Rf1 Ng7 17. f4 exf4 18. Bxf4 Bxf4 19. Rxf4 f5 {0-1 (39) Mytarev,V-Golovanov,V (1843) Nizhnij Novgorod 2013}) 14. Ng3 {[%emt 0:02:29] The position is equal.} g6 {[%emt 0:12:36]} 15. Bh6 {[%emt 0:20:50]} Bf8 {[%emt 0:07:29]} 16. Qc1 {[%emt 0:05:11]} Bg7 {[%emt 0:19:08]} 17. Bc2 {[%emt 0:03:55]} Qe7 {[%emt 0:12:16]} 18. Bd3 {[%emt 0:03:12]} Bxh6 {[%emt 0:05:34]} 19. Qxh6 {[%emt 0:00:05]} Qf8 {[%emt 0:00:06]} (19... c4 $5 {[%cal Rc4d3]} 20. Bc2 Bd7 $11) 20. Qe3 {[%emt 0:05:58]} Kh8 {[%emt 0:06:52]} 21. Nd2 {[%emt 0:03:03]} Ng8 {[%emt 0:02:04]} 22. f4 {[%emt 0:09:07]} Qh6 {[%emt 0:01:09]} 23. fxe5 {[%emt 0:10:20] Hoping for Qxh6.} Qxe3+ {[%emt 0:00:12]} 24. Rxe3 {[%emt 0:00:05]} Rxe5 {[%emt 0:04:44][%cal Ob6d5]} 25. Rf3 {[%emt 0:06:29]} Kg7 {[%emt 0:02:20]} 26. b3 {[%emt 0:00:41]} Re7 {[%emt 0:04:03]} 27. a4 {[%emt 0:01:12]} Bd7 {[%emt 0:03:16][%cal Rb5a4]} 28. axb5 {[%emt 0:02:08] &Bianco is more active.} (28. a5 $16 Nc8 29. Raf1) 28... Bxb5 {[%emt 0:02:14]} 29. Ra5 {[%emt 0:00:14]} Bxd3 {[%emt 0:00:37]} 30. Rxd3 {[%emt 0:00:05]} Nf6 {[%emt 0:00:58]} 31. Rf3 {[%emt 0:01:27]} Ne8 {[%emt 0:06:35]} 32. Rf1 {[%emt 0:03:22]} Nc7 {[%emt 0:00:33]} 33. b4 {[%emt 0:04:18]} c4 {[%emt 0:00:13]} 34. Rf3 {[%emt 0:01:51]} Nb5 {[%emt 0:02:15]} 35. Kf2 {[%emt 0:00:41]} Rc7 {[%emt 0:00:31]} (35... Nd7 $11) 36. Ke2 {[%emt 0:01:23]} (36. Ne2 $14) 36... Nd7 {[%emt 0:00:17]} 37. Kd1 {[%emt 0:00:13]} Ne5 {[%emt 0:00:04]} 38. Re3 {[%emt 0:00:06]} Re7 {[%emt 0:00:57]} (38... Nd7 $1 $14) 39. Kc2 $16 {[%emt 0:01:05]} Nc7 {[%emt 0:00:26]} (39... Raa7 $142) 40. Ne2 {[%emt 0:02:32][%cal Bg3e2,Be2d4,Bd4f3,Bf3e5][%mdl 32]} Rf8 {[%emt 0:01:21]} (40... Rae8 $16 41. Nd4 f6) 41. Nd4 $18 {[%emt 0:31:58]} Kh6 {[%emt 0:16:02]} (41... Rc8 $142 42. N4f3 Nxf3 43. gxf3 Rd7) 42. N4f3 {[%emt 0:00:00]} Rfe8 $2 {[%emt 0:05:55] [#]} (42... f6 {keeps fighting.} 43. Nxe5 fxe5 44. Nxc4 Rd7) 43. Nxe5 {[%emt 0:00:00] White is clearly winning.} Rxe5 {[%emt 0:00:04]} 44. Nxc4 {[%emt 0:00:00]} Rxe4 {[%emt 0:00:13]} 45. Rxe4 {[%emt 0:00:00]} Rxe4 {[%emt 0:00:04]} 46. Nxd6 {[%emt 0:00:00][%mdl 4096] Endgame KRN-KRN} Re2+ {[%emt 0:00:06]} 47. Kd3 {[%emt 0:00:00]} Rxg2 {[%emt 0:00:05]} 48. Rc5 {[%emt 0:00:00]} Rg3+ {[%emt 0:02:06]} 49. Kc4 {[%emt 0:00:00]} Na8 {[%emt 0:00:28]} 50. Rc6 {[%emt 0:00:00] [#] Black must now prevent Nf5+.} Rxh3 {[%emt 0:01:06]} 51. Rxa6 {[%emt 0:00:00]} Nc7 {[%emt 0:00:38]} 52. Rc6 {[%emt 0:00:00] Weighted Error Value: White=0.07 (flawless) /Black=0.33} 1-0